fUST/lending_fUST_20250415
["ID","MTS","AMOUNT","RATE_DAILY","PERIOD"]
[358092393,1744703455918,-592.74,0.00025205,2]
[358092394,1744703455928,-500.0,0.00025205,2]
[358092395,1744703455938,-500.0,0.00025205,2]
[358092396,1744703455948,-500.0,0.00025205,2]
[358092397,1744703455958,-500.0,0.00025205,2]
[358092398,1744703455968,-500.0,0.00025205,2]
[358092399,1744703455978,-500.0,0.00025205,2]
[358092400,1744703455988,-500.0,0.00025205,2]
[358092401,1744703455998,-1474.8,0.00025205,2]
[358092402,1744703456008,-672.08,0.00025205,2]
[358092403,1744703456018,-171.43111849,0.00025205,2]
[358092404,1744703456029,-1152.48,0.00025205,2]
[358092405,1744703456039,-598.1,0.00025205,2]
[358092406,1744703456049,-500.0,0.00025205,2]
[358092407,1744703456059,-790.86,0.00025205,2]
[358092408,1744703456069,-500.0,0.00025205,2]
[358092409,1744703456079,-1308.53,0.00025205,2]
[358092410,1744703456090,-500.0,0.00025205,2]
[358092411,1744703456100,-817.75,0.00025205,2]
[358092412,1744703456110,-500.0,0.00025205,2]
[358092413,1744703456126,-500.0,0.00025205,2]
[358092414,1744703456140,-500.0,0.00025205,2]
[358092415,1744703456151,-500.0,0.00025205,2]
[358092416,1744703456161,-500.0,0.00025205,2]
[358092417,1744703456171,-1046.58,0.00025205,2]
[358092418,1744703456181,-415.15435488,0.00025205,2]
[358092419,1744703456189,-638.4,0.00025205,2]
[358092420,1744703456199,-500.0,0.00025205,2]
[358092421,1744703456209,-753.3,0.00025205,2]
[358092422,1744703456218,-1094.74,0.00025205,2]
[358092423,1744703456228,-500.0,0.00025205,2]
[358092424,1744703456238,-2151.37,0.00025205,2]
[358092425,1744703456248,-500.0,0.00025205,2]
[358092426,1744703456258,-500.0,0.00025205,2]
[358092427,1744703456268,-1569.94,0.00025205,2]
[358092428,1744703456278,-1951.98,0.00025205,2]
[358092429,1744703456288,-2429.29,0.00025205,2]
[358092430,1744703456298,-5036.89,0.00025205,2]
[358092431,1744703456310,-553.25,0.00025205,2]
[358092432,1744703456320,-1995.94,0.00025205,2]
[358092433,1744703456331,-500.0,0.00025205,2]
[358092434,1744703456341,-500.0,0.00025205,2]
[358092435,1744703456351,-497.61076775,0.00025205,2]
[358092436,1744703456361,-811.77,0.00025205,2]
[358092437,1744703456371,-500.0,0.00025205,2]
[358092438,1744703456382,-500.0,0.00025205,2]
[358092439,1744703456393,-531.89,0.00025205,2]
[358092440,1744703456403,-676.76,0.00025205,2]
[358092441,1744703456413,-1396.3,0.00025205,2]
[358092442,1744703456424,-500.0,0.00025205,2]
[358092443,1744703456434,-500.0,0.00025205,2]
[358092444,1744703456445,-500.0,0.00025205,2]
[358092445,1744703456455,-500.0,0.00025205,2]
[358092446,1744703456465,-48250.02,0.00025205,2]
[358092447,1744703456475,-626.98,0.00025205,2]
[358092448,1744703456485,-14623.36,0.00025205,2]
[358092449,1744703456496,-928.41,0.00025205,2]
[358092450,1744703456506,-500.0,0.00025205,2]
[358092451,1744703456515,-500.0,0.00025205,2]
[358092452,1744703456525,-500.0,0.00025205,2]
[358092453,1744703456535,-500.0,0.00025205,2]
[358092454,1744703456546,-516.28257162,0.00025205,2]
[358092455,1744703456555,-500.0,0.00025205,2]
[358092456,1744703456566,-500.0,0.00025205,2]
[358092457,1744703456576,-998.17,0.00025205,2]
[358092458,1744703456586,-500.0,0.00025205,2]
[358092459,1744703456596,-500.0,0.00025205,2]
[358092460,1744703456606,-3455.19,0.00025205,2]
[358092461,1744703456616,-500.0,0.00025205,2]
[358092462,1744703456627,-500.0,0.00025205,2]
[358092463,1744703456637,-500.0,0.00025205,2]
[358092464,1744703456648,-511.68,0.00025205,2]
[358092465,1744703456658,-500.0,0.00025205,2]
[358092466,1744703456668,-500.0,0.00025205,2]
[358092467,1744703456678,-1732.81,0.00025205,2]
[358092468,1744703456689,-500.0,0.00025205,2]
[358092469,1744703456700,-758.18,0.00025205,2]
[358092470,1744703456711,-778.1,0.00025205,2]
[358092471,1744703456721,-1100.78,0.00025205,2]
[358092472,1744703456731,-500.0,0.00025273,2]
[358092473,1744703456745,-505.02022128,0.00025273,2]
[358092474,1744703456755,-500.0,0.00025273,2]
[358092475,1744703456765,-150.14936765,0.00025473,2]
[358092476,1744703456775,-500.0,0.00025479,2]
[358092477,1744703456788,-300.0,0.00025479,2]
[358092478,1744703456798,-500.0,0.00025479,2]
[358092479,1744703456809,-500.0,0.00025479,2]
[358092480,1744703456820,-1081.21,0.00025479,2]
[358092481,1744703456831,-500.0,0.00025479,2]
[358092482,1744703456841,-500.0,0.00025479,2]
[358092483,1744703456851,-500.0,0.00025479,2]
[358092484,1744703456861,-500.0,0.00025479,2]
[358092485,1744703456872,-1032.68,0.00025479,2]
[358092486,1744703456882,-500.0,0.00025479,2]
[358092487,1744703456892,-500.0,0.00025479,2]
[358092488,1744703456902,-515.38,0.00025479,2]
[358092489,1744703456912,-526.8,0.00025479,2]
[358092490,1744703456921,-500.0,0.00025479,2]
[358092491,1744703456932,-500.0,0.00025479,2]
[358092492,1744703456942,-500.0,0.00025479,2]
[358092493,1744703456952,-877.04,0.00025479,2]
[358092494,1744703456962,-500.0,0.00025479,2]
[358092495,1744703456973,-500.0,0.00025479,2]
[358092496,1744703456983,-500.0,0.00025479,2]
[358092497,1744703456993,-500.0,0.00025479,2]
[358092498,1744703457003,-500.0,0.00025479,2]
[358092499,1744703457014,-500.0,0.00025479,2]
[358092500,1744703457024,-500.0,0.00025479,2]
[358092501,1744703457035,-500.0,0.00025479,2]
[358092502,1744703457046,-462.06486157,0.00025479,2]
[358092503,1744703457057,-500.0,0.00025479,2]
[358092504,1744703457068,-500.0,0.00025479,2]
[358092505,1744703457079,-500.0,0.00025479,2]
[358092506,1744703457089,-966.42315029,0.00025479,2]
[358092507,1744703457099,-500.0,0.00025479,2]
[358092508,1744703457109,-500.0,0.00025479,2]
[358092509,1744703457119,-500.0,0.00025479,2]
[358092510,1744703457130,-500.0,0.00025479,2]
[358092511,1744703457140,-1663.57,0.00025479,2]
[358092512,1744703457151,-500.0,0.00025479,2]
[358092513,1744703457161,-500.0,0.00025479,2]
[358092514,1744703457172,-500.0,0.00025479,2]
[358092515,1744703457183,-500.0,0.00025479,2]
[358092516,1744703457193,-500.0,0.00025479,2]
[358092517,1744703457203,-500.0,0.00025479,2]
[358092518,1744703457214,-657.4,0.00025479,2]
[358092519,1744703457225,-1375.53,0.00025479,2]
[358092520,1744703457235,-507.14,0.00025479,2]
[358092521,1744703457246,-561.8,0.00025479,2]
[358092522,1744703457256,-500.0,0.00025479,2]
[358092523,1744703457266,-500.0,0.00025479,2]
[358092524,1744703457276,-840.88,0.00025479,2]
[358092525,1744703457286,-500.0,0.00025479,2]
[358092526,1744703457296,-500.0,0.00025479,2]
[358092527,1744703457307,-500.0,0.00025479,2]
[358092528,1744703457317,-989.86,0.00025479,2]
[358092529,1744703457327,-661.17,0.00025479,2]
[358092530,1744703457337,-726.1,0.00025479,2]
[358092531,1744703457347,-1528.25,0.00025479,2]
[358092532,1744703457357,-500.0,0.00025479,2]
[358092533,1744703457367,-500.0,0.00025479,2]
[358092534,1744703457377,-500.0,0.00025479,2]
[358092535,1744703457388,-972.22,0.00025479,2]
[358092536,1744703457398,-500.0,0.00025479,2]
[358092537,1744703457408,-533.08,0.00025479,2]
[358092538,1744703457418,-500.0,0.00025479,2]
[358092539,1744703457428,-1465.74,0.00025479,2]
[358092540,1744703457438,-533.22,0.00025479,2]
[358092541,1744703457448,-500.0,0.00025479,2]
[358092542,1744703457459,-500.0,0.00025479,2]
[358092543,1744703457469,-183.08791838,0.00025479,2]
[358092544,1744703457479,-500.0,0.00025479,2]
[358092545,1744703457489,-500.0,0.00025479,2]
[358092546,1744703457499,-500.0,0.00025479,2]
[358092547,1744703457509,-500.0,0.00025479,2]
[358092548,1744703457519,-1012.34,0.00025479,2]
[358092549,1744703457530,-500.0,0.00025479,2]
[358092550,1744703457540,-2890.29,0.00025479,2]
[358092551,1744703457550,-500.0,0.00025479,2]
[358092552,1744703457561,-500.0,0.00025479,2]
[358092553,1744703457571,-1389.46,0.00025479,2]
[358092554,1744703457581,-500.0,0.00025479,2]
[358092555,1744703457591,-500.0,0.00025479,2]
[358092556,1744703457603,-749.27,0.00025479,2]
[358092557,1744703457612,-510.57238735,0.00025479,2]
[358092558,1744703457622,-1411.74,0.00025479,2]
[358092559,1744703457632,-920.04,0.00025479,2]
[358092560,1744703457643,-1315.52,0.00025479,2]
[358092561,1744703457653,-500.0,0.00025479,2]
[358092562,1744703457663,-638.66,0.00025479,2]
[358092563,1744703457673,-500.0,0.00025479,2]
[358092564,1744703457683,-500.0,0.00025479,2]
[358092565,1744703457694,-500.0,0.00025479,2]
[358092566,1744703457704,-500.0,0.00025479,2]
[358092567,1744703457714,-500.0,0.00025479,2]
[358092568,1744703457724,-721.72,0.00025479,2]
[358092569,1744703457734,-1000.0,0.00025479,2]
[358092570,1744703457748,-500.0,0.00025479,2]
[358092571,1744703457760,-500.0,0.00025479,2]
[358092572,1744703457772,-522.82,0.00025479,2]
[358092573,1744703457783,-500.0,0.00025479,2]
[358092574,1744703457797,-500.0,0.00025479,2]
[358092575,1744703457807,-532.75,0.00025479,2]
[358092576,1744703457817,-500.0,0.00025479,2]
[358092577,1744703457829,-500.0,0.00025479,2]
[358092578,1744703457839,-500.0,0.00025479,2]
[358092579,1744703457849,-822.32,0.00025479,2]
[358092580,1744703457859,-500.0,0.00025479,2]
[358092581,1744703458101,-500.0,0.00025479,2]
[358092582,1744703458114,-547.11,0.00025479,2]
[358092583,1744703458124,-1207.92,0.00025479,2]
[358092584,1744703458134,-500.0,0.00025479,2]
[358092585,1744703458144,-1148.68,0.00025479,2]
[358092586,1744703458155,-500.0,0.00025479,2]
[358092587,1744703458165,-500.0,0.00025479,2]
[358092588,1744703458175,-500.0,0.00025479,2]
[358092589,1744703458185,-2126.97,0.00025479,2]
[358092590,1744703458195,-950.62,0.00025479,2]
[358092591,1744703458205,-500.0,0.00025479,2]
[358092592,1744703458214,-992.61,0.00025479,2]
[358092593,1744703458224,-500.0,0.00025479,2]
[358092594,1744703458234,-500.0,0.00025479,2]
[358092595,1744703458243,-723.79,0.00025479,2]
[358092596,1744703458253,-500.0,0.00025479,2]
[358092597,1744703458263,-906.35,0.00025479,2]
[358092598,1744703458273,-500.0,0.00025479,2]
[358092599,1744703458283,-1123.0,0.00025479,2]
[358092600,1744703458292,-500.0,0.00025479,2]
[358092601,1744703458303,-500.0,0.00025479,2]
[358092602,1744703458313,-500.0,0.00025479,2]
[358092603,1744703458323,-459.31138561,0.00025479,2]
[358092604,1744703458333,-153.6142727,0.00025479,2]
[358092605,1744703458344,-500.0,0.00025479,2]
[358092606,1744703458354,-550.31,0.00025479,2]
[358092607,1744703458364,-302.74147271,0.00025479,2]
[358092608,1744703458374,-511.08336433,0.00025479,2]
[358092609,1744703458384,-500.0,0.00025479,2]
[358092610,1744703458394,-500.0,0.00025479,2]
[358092611,1744703458403,-500.0,0.00025479,2]
[358092612,1744703458413,-500.0,0.00025479,2]
[358092613,1744703458423,-500.0,0.00025479,2]
[358092614,1744703458433,-1215.78,0.00025479,2]
[358092615,1744703458442,-500.0,0.00025479,2]
[358092616,1744703458452,-915.35,0.00025479,2]
[358092617,1744703458462,-592.18,0.00025479,2]
[358092618,1744703458472,-740.03,0.00025479,2]
[358092619,1744703458482,-500.0,0.00025479,2]
[358092620,1744703458492,-500.0,0.00025479,2]
[358092621,1744703458501,-935.96,0.00025479,2]
[358092622,1744703458511,-500.0,0.00025479,2]
[358092623,1744703458523,-1092.84,0.00025479,2]
[358092624,1744703458533,-1897.17,0.00025479,2]
[358092625,1744703458544,-1770.72,0.00025479,2]
[358092626,1744703458555,-825.25,0.00025479,2]
[358092627,1744703458565,-500.0,0.00025479,2]
[358092628,1744703458574,-1192.3,0.00025479,2]
[358092629,1744703458584,-906.31,0.00025479,2]
[358092630,1744703458594,-500.0,0.00025479,2]
[358092631,1744703458603,-500.0,0.00025479,2]
[358092632,1744703458613,-798.91,0.00025479,2]
[358092633,1744703458623,-500.0,0.00025479,2]
[358092634,1744703458633,-514.16,0.00025479,2]
[358092635,1744703458643,-1396.22,0.00025479,2]
[358092636,1744703458653,-2969.16,0.00025479,2]
[358092637,1744703458662,-405.8845051,0.00025479,2]
[358092638,1744703458672,-500.0,0.00025479,2]
[358092639,1744703458682,-500.0,0.00025479,2]
[358092640,1744703458691,-523.86632965,0.00025479,2]
[358092641,1744703458701,-500.0,0.00025479,2]
[358092642,1744703458711,-693.94,0.00025479,2]
[358092643,1744703458720,-500.0,0.00025479,2]
[358092644,1744703458730,-1428.26,0.00025479,2]
[358092645,1744703458739,-854.66,0.00025479,2]
[358092646,1744703458751,-2077.15,0.00025479,2]
[358092647,1744703458761,-500.0,0.00025479,2]
[358092648,1744703458770,-500.0,0.00025479,2]
[358092649,1744703458780,-500.0,0.00025479,2]
[358092650,1744703458791,-500.0,0.00025479,2]
[358092651,1744703458800,-500.0,0.00025479,2]
[358092652,1744703458810,-500.0,0.00025479,2]
[358092653,1744703458819,-500.0,0.00025479,2]
[358092654,1744703458832,-500.0,0.00025479,2]
[358092655,1744703458842,-544.9,0.00025479,2]
[358092656,1744703458851,-507.14,0.00025479,2]
[358092657,1744703458861,-500.0,0.00025479,2]
[358092658,1744703458871,-871.78,0.00025479,2]
[358092659,1744703458880,-1777.67,0.00025479,2]
[358092660,1744703458890,-1188.41,0.00025479,2]
[358092661,1744703458900,-934.88,0.00025479,2]
[358092662,1744703458910,-500.0,0.00025479,2]
[358092663,1744703458920,-570.29,0.00025479,2]
[358092664,1744703458929,-2043.49,0.00025479,2]
[358092665,1744703458939,-500.0,0.00025479,2]
[358092666,1744703458949,-1790.7,0.00025479,2]
[358092667,1744703458960,-500.0,0.00025479,2]
[358092668,1744703458970,-511.41625568,0.00025479,2]
[358092669,1744703458980,-478.52437857,0.00025479,2]
[358092670,1744703458989,-500.0,0.00025479,2]
[358092671,1744703458999,-2073.92,0.00025479,2]
[358092672,1744703459009,-2014.1,0.00025479,2]
[358092673,1744703459019,-500.0,0.00025479,2]
[358092674,1744703459028,-500.0,0.00025479,2]
[358092675,1744703459038,-1819.49,0.00025479,2]
[358092676,1744703459048,-500.0,0.00025479,2]
[358092677,1744703459057,-500.0,0.00025479,2]
[358092678,1744703459067,-1592.32,0.00025479,2]
[358092679,1744703459077,-500.0,0.00025479,2]
[358092680,1744703459087,-500.0,0.00025479,2]
[358092681,1744703459097,-781.73,0.00025479,2]
[358092682,1744703459107,-536.82567167,0.00025479,2]
[358092683,1744703459117,-1313.77,0.00025479,2]
[358092684,1744703459126,-500.0,0.00025479,2]
[358092685,1744703459136,-500.0,0.00025479,2]
[358092686,1744703459146,-500.0,0.00025479,2]
[358092687,1744703459155,-500.0,0.00025479,2]
[358092688,1744703459165,-500.0,0.00025479,2]
[358092689,1744703459175,-500.0,0.00025479,2]
[358092690,1744703459185,-994.01,0.00025479,2]
[358092691,1744703459194,-500.0,0.00025479,2]
[358092692,1744703459204,-500.0,0.00025479,2]
[358092693,1744703459214,-500.0,0.00025479,2]
[358092694,1744703459224,-500.0,0.00025479,2]
[358092695,1744703459235,-500.0,0.00025479,2]
[358092696,1744703459245,-500.0,0.00025479,2]
[358092697,1744703459255,-500.0,0.00025479,2]
[358092698,1744703459265,-566.97,0.00025479,2]
[358092699,1744703459275,-500.0,0.00025479,2]
[358092700,1744703459285,-670.97,0.00025479,2]
[358092701,1744703459296,-1326.48,0.00025479,2]
[358092702,1744703459306,-500.0,0.00025479,2]
[358092703,1744703459316,-500.0,0.00025479,2]
[358092704,1744703459326,-500.0,0.00025479,2]
[358092705,1744703459337,-690.78,0.00025479,2]
[358092706,1744703459347,-500.0,0.00025479,2]
[358092707,1744703459358,-500.0,0.00025479,2]
[358092708,1744703459368,-1281.55,0.00025479,2]
[358092709,1744703459378,-500.0,0.00025479,2]
[358092710,1744703459387,-929.46,0.00025479,2]
[358092711,1744703459397,-500.0,0.00025479,2]
[358092712,1744703459408,-500.0,0.00025479,2]
[358092713,1744703459418,-660.65,0.00025479,2]
[358092714,1744703459428,-500.0,0.00025479,2]
[358092715,1744703459438,-134.50039235,0.00025479,2]
[358092716,1744703459688,-375.96698777,0.00025479,2]
[358092717,1744703459700,-3799.81261988,0.00025479,2]
[358092718,1744703459711,-500.0,0.00025479,2]
[358092719,1744703459721,-500.0,0.00025479,2]
[358092720,1744703459731,-849.67,0.00025479,2]
[358092721,1744703459741,-500.0,0.00025479,2]
[358092722,1744703459753,-500.0,0.00025479,2]
[358092723,1744703459763,-500.0,0.00025479,2]
[358092724,1744703459773,-512.75,0.00025479,2]
[358092725,1744703459783,-557.24,0.00025479,2]
[358092726,1744703459794,-6417.41,0.00025479,2]
[358092727,1744703459804,-535.98937561,0.00025479,2]
[358092728,1744703459813,-500.0,0.00025479,2]
[358092729,1744703459825,-8612.39,0.00025479,2]
[358092730,1744703459836,-560.67,0.00025479,2]
[358092731,1744703459846,-1132.61,0.00025479,2]
[358092732,1744703459856,-500.0,0.00025479,2]
[358092733,1744703459866,-500.0,0.00025479,2]
[358092734,1744703459876,-1522.81,0.00025479,2]
[358092735,1744703459886,-1951.92,0.00025479,2]
[358092736,1744703459895,-500.0,0.00025479,2]
[358092737,1744703459905,-592.74,0.00025479,2]
[358092738,1744703459915,-500.0,0.00025479,2]
[358092739,1744703459924,-500.0,0.00025479,2]
[358092740,1744703459934,-500.0,0.00025479,2]
[358092741,1744703459943,-500.0,0.00025479,2]
[358092742,1744703459952,-500.0,0.00025479,2]
[358092743,1744703459963,-500.0,0.00025479,2]
[358092744,1744703459973,-500.0,0.00025479,2]
[358092745,1744703459983,-1474.8,0.00025479,2]
[358092746,1744703459993,-672.08,0.00025479,2]
[358092747,1744703460003,-1152.48,0.00025479,2]
[358092748,1744703460013,-598.1,0.00025479,2]
[358092749,1744703460023,-500.0,0.00025479,2]
[358092750,1744703460033,-790.86,0.00025479,2]
[358092751,1744703460043,-500.0,0.00025479,2]
[358092752,1744703460054,-1308.53,0.00025479,2]
[358092753,1744703460064,-500.0,0.00025479,2]
[358092754,1744703460074,-817.75,0.00025479,2]
[358092755,1744703460083,-500.0,0.00025479,2]
[358092756,1744703460092,-500.0,0.00025479,2]
[358092757,1744703460102,-500.0,0.00025479,2]
[358092758,1744703460112,-500.0,0.00025479,2]
[358092759,1744703460123,-500.0,0.00025479,2]
[358092760,1744703460133,-1046.58,0.00025479,2]
[358092761,1744703460143,-638.4,0.00025479,2]
[358092762,1744703460153,-500.0,0.00025479,2]
[358092763,1744703460162,-753.3,0.00025479,2]
[358092764,1744703460173,-1094.74,0.00025479,2]
[358092765,1744703460182,-500.0,0.00025479,2]
[358092766,1744703460192,-2151.37,0.00025479,2]
[358092767,1744703460202,-500.0,0.00025479,2]
[358092768,1744703460213,-500.0,0.00025479,2]
[358092769,1744703460223,-1569.94,0.00025479,2]
[358092770,1744703460234,-1951.98,0.00025479,2]
[358092771,1744703460245,-3637.48858158,0.00025479,2]
[358092772,1744703461161,-183.7019372,0.00024656,2]
[358092773,1744703461172,-176.88659458,0.00024656,2]
[358092774,1744703461182,-151.0,0.00024657,7]
[358092775,1744703461192,-151.0,0.00024657,7]
[358092776,1744703461202,-197.54648448,0.00024657,2]
[358092786,1744704050312,-190.47143697,0.00022986,2]
[358092787,1744704064572,-166.7946333,0.00022986,2]
[358092802,1744704101150,-160.0,0.00022986,2]
[358092803,1744704126780,-152.49188077,0.00022986,2]
[358092804,1744704182976,-160.0,0.00022986,2]
[358092805,1744704190807,-151.0,0.00022986,2]
[358092806,1744704196160,-151.0,0.00022756,2]
[358092807,1744704197470,-151.0,0.00024657,7]
[358092808,1744704197496,-4.247126,0.00024657,7]
[358092810,1744704203124,-151.0,0.00024657,7]
[358092811,1744704205854,-437.03060665,0.00022986,2]
[358092812,1744704246015,-188.84397746,0.00022986,2]
[358092814,1744704614986,-188.84397746,0.00022528,2]
[358092815,1744704615010,-111.15602254,0.00022986,2]
[358092816,1744704620747,-269.83241215,0.00022986,2]
[358092817,1744704627362,-169.42368943,0.00024655,3]
[358092848,1744704632697,-1854.37903016,0.00022986,2]
[358092849,1744704632708,-159.26751281,0.00022986,2]
[358092851,1744704632718,-250.0,0.00023086,2]
[358092852,1744704632728,-865.13643852,0.00023086,2]
[358092853,1744704632760,-134.86356148,0.00023086,2]
[358092854,1744704632770,-119.17442431,0.00023642,2]
[358092862,1744704638720,-72.47975539,0.00023642,2]
[358092864,1744704638730,-196.89,0.0002369,2]
[358092866,1744704638740,-300.0,0.00023699,2]
[358092868,1744704638751,-300.0,0.00023699,2]
[358092870,1744704638761,-846.09024461,0.00023699,2]
[358092878,1744704638843,-4153.90975539,0.00023699,2]
[358092880,1744704638853,-1482.77024461,0.000237,2]
[358092882,1744704638865,-10009.48310238,0.000237,2]
[358092935,1744704641281,-0.0255029,0.000237,2]
[358092936,1744704641304,-712.13512112,0.000237,2]
[358092942,1744704643794,-43.35564699,0.000237,2]
[358092944,1744704643806,-2713.6445042,0.00024557,2]
[358092946,1744704643815,-151.0,0.00024642,2]
[358092948,1744704643825,-207.4,0.00024642,2]
[358092950,1744704643836,-149.57631057,0.00024655,3]
[358092951,1744704643846,-319.0,0.00024655,3]
[358092952,1744704643858,-319.0,0.00024655,3]
[358092953,1744704643868,-204.81586845,0.00024655,3]
[358092954,1744704643877,-156.96,0.00024656,2]
[358092955,1744704643887,-500.0,0.00024656,2]
[358092956,1744704643897,-500.0,0.00024656,2]
[358092957,1744704643907,-404.05673497,0.00024656,2]
[358092958,1744704643917,-165.90710488,0.00024656,2]
[358092959,1744704643926,-500.0,0.00024656,2]
[358092960,1744704643935,-500.0,0.00024656,2]
[358092961,1744704643945,-500.0,0.00024656,2]
[358092962,1744704643955,-500.0,0.00024656,2]
[358092963,1744704643964,-636.5106148,0.00024656,2]
[358092964,1744704643975,-500.0,0.00024656,2]
[358092965,1744704643985,-500.0,0.00024656,2]
[358092966,1744704643995,-439.25610158,0.00024656,2]
[358092967,1744704644006,-500.0,0.00024657,2]
[358092968,1744704644016,-500.0,0.00024657,2]
[358092969,1744704644027,-500.0,0.00024657,2]
[358092970,1744704644037,-500.0,0.00024657,2]
[358092971,1744704644047,-500.0,0.00024657,2]
[358092972,1744704644056,-500.0,0.00024657,2]
[358092973,1744704644067,-500.0,0.00024657,2]
[358092974,1744704644077,-500.0,0.00024657,2]
[358092975,1744704644087,-153.19382666,0.00024657,2]
[358092976,1744704644217,-300.0,0.00024657,2]
[358092990,1744704646787,-46.80617334,0.00024657,2]
[358092991,1744704646797,-500.0,0.00024657,2]
[358092992,1744704646807,-500.0,0.00024657,2]
[358092993,1744704646818,-500.0,0.00024657,2]
[358092994,1744704646827,-500.0,0.00024657,2]
[358092995,1744704646837,-500.0,0.00024657,2]
[358092996,1744704646847,-500.0,0.00024657,2]
[358092997,1744704646858,-496.1416958,0.00024657,2]
[358092998,1744704646868,-500.0,0.00024657,2]
[358093000,1744704646878,-500.0,0.00024657,2]
[358093002,1744704646887,-639.49042075,0.00024657,2]
[358093004,1744704646896,-824.88,0.00024657,2]
[358093006,1744704646907,-500.0,0.00024657,2]
[358093008,1744704646917,-1221.45,0.00024657,2]
[358093011,1744704646928,-500.0,0.00024657,2]
[358093013,1744704646937,-500.0,0.00024657,2]
[358093014,1744704646947,-500.0,0.00024657,2]
[358093015,1744704646956,-500.0,0.00024657,2]
[358093016,1744704646966,-500.0,0.00024657,2]
[358093017,1744704646976,-500.0,0.00024657,2]
[358093018,1744704646985,-624.39,0.00024657,2]
[358093019,1744704646996,-500.0,0.00024657,2]
[358093020,1744704647005,-500.0,0.00024657,2]
[358093021,1744704647015,-500.0,0.00024657,2]
[358093022,1744704647025,-546.11274272,0.00024657,2]
[358093023,1744704647037,-500.0,0.00024657,2]
[358093024,1744704647047,-500.0,0.00024657,2]
[358093025,1744704647059,-500.0,0.00024657,2]
[358093026,1744704647070,-500.0,0.00024657,2]
[358093027,1744704647081,-500.0,0.00024657,2]
[358093028,1744704647090,-500.0,0.00024657,2]
[358093029,1744704647100,-1000.0,0.00024657,2]
[358093030,1744704647114,-500.0,0.00024657,2]
[358093031,1744704647124,-500.0,0.00024657,2]
[358093032,1744704647134,-501.02305109,0.00024657,2]
[358093033,1744704647144,-827.18,0.00024657,2]
[358093034,1744704647155,-500.0,0.00024657,2]
[358093035,1744704647165,-500.0,0.00024657,2]
[358093036,1744704647174,-500.0,0.00024657,2]
[358093037,1744704647186,-254.27347611,0.00024657,2]
[358093038,1744704647205,-245.72652389,0.00024657,2]
[358093039,1744704647215,-411.25032271,0.00024657,2]
[358093040,1744704648154,-88.74967729,0.00024657,2]
[358093041,1744704648182,-341.31712043,0.00024657,2]
[358093042,1744704656701,-158.68287957,0.00024657,2]
[358093043,1744704656729,-51.08238675,0.00024657,2]
[358093045,1744704725242,-172.75972275,0.00022557,2]
[358093046,1744704725270,-77.24027725,0.0002266,2]
[358093047,1744704730067,-207.94309038,0.0002266,2]
[358093048,1744704742135,-184.24109139,0.0002266,2]
[358093049,1744704768184,-237.9951355,0.0002266,2]
[358093050,1744704782721,-158.66768843,0.0002266,2]
[358093051,1744704804040,-164.62627224,0.0002266,2]